[Event "Titled Tuesday Blitz June 13 Late 2023"]
[White "Francisco_Ferrari"]
[Black "Zochowski, Kacper"]
[BlackFideId "1125494"]
[WhiteElo "2351"]
[BlackElo "2235"]
[Result "0-1"]
[Round "1"]
[TimeControl "180+2"]
[Date "2023.06.13"]
[WhiteClock "0:00:02"]
[BlackClock "0:00:27"]
[Board "125"]

1. d3 {[%clk 0:02:56]}  d6 {[%clk 0:02:54]} 2. d4 {[%clk 0:02:55]}  Nd7 {[%clk 0:02:53]} 3. Nf3 {[%clk 0:02:49]}  e5 {[%clk 0:02:52]} 4. e4 {[%clk 0:02:37]}  Ngf6 {[%clk 0:02:51]} 5. Nc3 {[%clk 0:02:37]}  Be7 {[%clk 0:02:49]} 6. Bc4 {[%clk 0:02:37]}  O-O {[%clk 0:02:50]} 7. O-O {[%clk 0:02:37]}  c6 {[%clk 0:02:50]} 8. h3 {[%clk 0:02:36]}  b5 {[%clk 0:02:50]} 9. dxe5 {[%clk 0:02:17]}  dxe5 {[%clk 0:02:40]} 10. Bb3 {[%clk 0:02:11]}  b4 {[%clk 0:02:35]} 11. Ne2 {[%clk 0:02:00]}  Nxe4 {[%clk 0:02:33]} 12. Be3 {[%clk 0:01:59]}  Nec5 {[%clk 0:02:30]} 13. Bc4 {[%clk 0:01:55]}  Qc7 {[%clk 0:02:28]} 14. Ng3 {[%clk 0:01:54]}  Nb6 {[%clk 0:02:23]} 15. Be2 {[%clk 0:01:46]}  Nd5 {[%clk 0:02:21]} 16. Bd2 {[%clk 0:01:44]}  Be6 {[%clk 0:02:09]} 17. Re1 {[%clk 0:01:37]}  f6 {[%clk 0:02:05]} 18. Bc4 {[%clk 0:01:24]}  a5 {[%clk 0:02:04]} 19. Qe2 {[%clk 0:01:23]}  Rad8 {[%clk 0:02:03]} 20. Rad1 {[%clk 0:01:24]}  Kh8 {[%clk 0:02:03]} 21. Ne4 {[%clk 0:01:20]}  Nd7 {[%clk 0:01:57]} 22. c3 {[%clk 0:01:15]}  N7b6 {[%clk 0:01:52]} 23. Bxd5 {[%clk 0:01:05]}  cxd5 {[%clk 0:01:51]} 24. Ng3 {[%clk 0:01:02]}  bxc3 {[%clk 0:01:51]} 25. Bxc3 {[%clk 0:01:02]}  Na4 {[%clk 0:01:42]} 26. Rc1 {[%clk 0:00:43]}  Nxc3 {[%clk 0:01:42]} 27. Rxc3 {[%clk 0:00:43]}  Qb6 {[%clk 0:01:41]} 28. Rb3 {[%clk 0:00:43]}  Qa7 {[%clk 0:01:39]} 29. Rc1 {[%clk 0:00:34]}  d4 {[%clk 0:01:39]} 30. Rb5 {[%clk 0:00:32]}  Rc8 {[%clk 0:01:33]} 31. Rxc8 {[%clk 0:00:28]}  Rxc8 {[%clk 0:01:33]} 32. Nxe5 {[%clk 0:00:28]}  fxe5 {[%clk 0:01:28]} 33. Rxe5 {[%clk 0:00:29]}  Bc4 {[%clk 0:01:27]} 34. Rxe7 {[%clk 0:00:27]}  Bxe2 {[%clk 0:01:26]} 35. Rxa7 {[%clk 0:00:27]}  d3 {[%clk 0:01:26]} 36. Rd7 {[%clk 0:00:22]}  h5 {[%clk 0:01:24]} 37. f3 {[%clk 0:00:18]}  Rc2 {[%clk 0:01:20]} 38. Nf5 {[%clk 0:00:09]}  d2 {[%clk 0:01:11]} 39. Ne3 {[%clk 0:00:01]}  Rc1+ {[%clk 0:01:11]} 40. Kf2 {[%clk 0:00:01]}  d1=Q {[%clk 0:01:12]} 41. Nxd1 {[%clk 0:00:01]}  Bxd1 {[%clk 0:01:12]} 42. Ra7 {[%clk 0:00:01]}  Bc2 {[%clk 0:00:57]} 43. Kg3 {[%clk 0:00:02]}  Kh7 {[%clk 0:00:52]} 44. Rxa5 {[%clk 0:00:02]}  Bg6 {[%clk 0:00:53]} 45. Rg5 {[%clk 0:00:02]}  Rc2 {[%clk 0:00:53]} 46. Rb5 {[%clk 0:00:02]}  h4+ {[%clk 0:00:52]} 47. Kxh4 {[%clk 0:00:02]}  Rxg2 {[%clk 0:00:52]} 48. a4 {[%clk 0:00:02]}  Kh6 {[%clk 0:00:51]} 49. a5 {[%clk 0:00:03]}  Bd3 {[%clk 0:00:49]} 50. Rb6+ {[%clk 0:00:02]}  g6 {[%clk 0:00:50]} 51. a6 {[%clk 0:00:03]}  Be2 {[%clk 0:00:30]} 52. a7 {[%clk 0:00:03]}  Bxf3 {[%clk 0:00:30]} 53. b4 {[%clk 0:00:02]}  Kh7 {[%clk 0:00:27]} 54. b5 {[%clk 0:00:02]}  g5# {[%clk 0:00:27]} 0-1


[Site "https://www.chess.com"]

[Event "Titled Tuesday Blitz June 13 Late 2023"]
[White "GAO"]
[Black "Sieciechowicz, Marcin"]
[BlackFideId "1130170"]
[WhiteElo "2349"]
[BlackElo "2301"]
[Result "0-1"]
[Round "1"]
[TimeControl "180+2"]
[Date "2023.06.13"]
[WhiteClock "0:00:02"]
[BlackClock "0:00:16"]
[Board "127"]

1. a3 {[%clk 0:02:52]}  g6 {[%clk 0:02:58]} 2. h4 {[%clk 0:02:51]}  Bg7 {[%clk 0:02:59]} 3. h5 {[%clk 0:02:51]}  d5 {[%clk 0:02:58]} 4. e3 {[%clk 0:02:51]}  Nc6 {[%clk 0:02:58]} 5. d4 {[%clk 0:02:50]}  e5 {[%clk 0:02:57]} 6. dxe5 {[%clk 0:02:50]}  Nxe5 {[%clk 0:02:57]} 7. Be2 {[%clk 0:02:48]}  c6 {[%clk 0:02:57]} 8. Nd2 {[%clk 0:02:44]}  Be6 {[%clk 0:02:55]} 9. Ngf3 {[%clk 0:02:45]}  Qc7 {[%clk 0:02:53]} 10. Nxe5 {[%clk 0:02:44]}  Bxe5 {[%clk 0:02:52]} 11. Nf3 {[%clk 0:02:44]}  Bg7 {[%clk 0:02:50]} 12. Nd4 {[%clk 0:02:44]}  O-O-O {[%clk 0:02:49]} 13. Bd2 {[%clk 0:02:36]}  Ne7 {[%clk 0:02:48]} 14. h6 {[%clk 0:02:33]}  Be5 {[%clk 0:02:46]} 15. Rb1 {[%clk 0:02:26]}  Nf5 {[%clk 0:02:44]} 16. Bc3 {[%clk 0:02:18]}  Rhe8 {[%clk 0:02:38]} 17. Nxe6 {[%clk 0:02:16]}  Rxe6 {[%clk 0:02:34]} 18. Bxe5 {[%clk 0:02:13]}  Qxe5 {[%clk 0:02:34]} 19. Qd3 {[%clk 0:01:54]}  Kb8 {[%clk 0:02:31]} 20. b4 {[%clk 0:01:48]}  d4 {[%clk 0:02:28]} 21. e4 {[%clk 0:01:48]}  Qxe4 {[%clk 0:02:25]} 22. Qxe4 {[%clk 0:01:42]}  Rxe4 {[%clk 0:02:26]} 23. Kf1 {[%clk 0:01:41]}  Kc7 {[%clk 0:02:23]} 24. Bd3 {[%clk 0:01:40]}  Re5 {[%clk 0:02:23]} 25. g3 {[%clk 0:01:38]}  Rde8 {[%clk 0:02:20]} 26. Kg2 {[%clk 0:01:37]}  Nd6 {[%clk 0:02:19]} 27. a4 {[%clk 0:01:34]}  a5 {[%clk 0:02:02]} 28. b5 {[%clk 0:01:20]}  c5 {[%clk 0:01:47]} 29. Rhd1 {[%clk 0:01:15]}  Nc8 {[%clk 0:01:37]} 30. Bc4 {[%clk 0:01:11]}  R8e7 {[%clk 0:01:35]} 31. Bd3 {[%clk 0:00:47]}  Nb6 {[%clk 0:01:33]} 32. Kg1 {[%clk 0:00:46]}  Rh5 {[%clk 0:01:32]} 33. Re1 {[%clk 0:00:45]}  Rhe5 {[%clk 0:01:15]} 34. Red1 {[%clk 0:00:45]}  Nxa4 {[%clk 0:01:13]} 35. Ra1 {[%clk 0:00:44]}  Nc3 {[%clk 0:01:13]} 36. Rf1 {[%clk 0:00:39]}  b6 {[%clk 0:01:12]} 37. Kg2 {[%clk 0:00:36]}  Kd6 {[%clk 0:01:11]} 38. Bc4 {[%clk 0:00:32]}  Rh5 {[%clk 0:01:04]} 39. Rh1 {[%clk 0:00:30]}  Rxh1 {[%clk 0:01:03]} 40. Rxh1 {[%clk 0:00:31]}  a4 {[%clk 0:01:03]} 41. Ra1 {[%clk 0:00:30]}  Ra7 {[%clk 0:00:57]} 42. Ra3 {[%clk 0:00:25]}  Ke5 {[%clk 0:00:50]} 43. Kf3 {[%clk 0:00:21]}  Kf5 {[%clk 0:00:50]} 44. g4+ {[%clk 0:00:18]}  Kg5 {[%clk 0:00:50]} 45. Ra1 {[%clk 0:00:18]}  a3 {[%clk 0:00:42]} 46. Kg3 {[%clk 0:00:17]}  a2 {[%clk 0:00:39]} 47. f4+ {[%clk 0:00:17]}  Kxh6 {[%clk 0:00:39]} 48. g5+ {[%clk 0:00:17]}  Kg7 {[%clk 0:00:39]} 49. Kg4 {[%clk 0:00:18]}  f5+ {[%clk 0:00:37]} 50. Kf3 {[%clk 0:00:17]}  h6 {[%clk 0:00:33]} 51. Bb3 {[%clk 0:00:14]}  Nxb5 {[%clk 0:00:26]} 52. Rxa2 {[%clk 0:00:11]}  Rxa2 {[%clk 0:00:25]} 53. Bxa2 {[%clk 0:00:12]}  Nd6 {[%clk 0:00:24]} 54. Bd5 {[%clk 0:00:11]}  c4 {[%clk 0:00:24]} 55. Be6 {[%clk 0:00:10]}  b5 {[%clk 0:00:24]} 56. Bd5 {[%clk 0:00:08]}  b4 {[%clk 0:00:23]} 57. Ke2 {[%clk 0:00:09]}  h5 {[%clk 0:00:20]} 58. Kd2 {[%clk 0:00:08]}  h4 {[%clk 0:00:20]} 59. Ke2 {[%clk 0:00:08]}  h3 {[%clk 0:00:19]} 60. Kf2 {[%clk 0:00:08]}  d3 {[%clk 0:00:18]} 61. cxd3 {[%clk 0:00:08]}  cxd3 {[%clk 0:00:19]} 62. Ke3 {[%clk 0:00:09]}  h2 {[%clk 0:00:16]} 63. Kf2 {[%clk 0:00:05]}  d2 {[%clk 0:00:15]} 64. Bb3 {[%clk 0:00:03]}  h1=Q {[%clk 0:00:15]} 65. Ke2 {[%clk 0:00:03]}  Qe1+ {[%clk 0:00:16]} 66. Kd3 {[%clk 0:00:03]}  d1=Q+ {[%clk 0:00:15]} 67. Bxd1 {[%clk 0:00:03]}  Qxd1+ {[%clk 0:00:16]} 68. Ke3 {[%clk 0:00:02]}  Nc4+ {[%clk 0:00:16]} 0-1


[Site "https://www.chess.com"]

[Event "Titled Tuesday Blitz June 13 Late 2023"]
[White "Annaberdiyev, Meylis"]
[Black "PushYourPawns0"]
[WhiteFideId "14000563"]
[WhiteElo "2416"]
[BlackElo "2349"]
[Result "1-0"]
[Round "1"]
[TimeControl "180+2"]
[Date "2023.06.13"]
[WhiteClock "0:00:23"]
[BlackClock "0:00:00"]
[Board "128"]

1. e4 {[%clk 0:03:00]}  e6 {[%clk 0:03:00]} 2. d4 {[%clk 0:02:59]}  d5 {[%clk 0:03:01]} 3. e5 {[%clk 0:03:00]}  c5 {[%clk 0:03:00]} 4. Nf3 {[%clk 0:03:01]}  Nc6 {[%clk 0:02:59]} 5. Bd3 {[%clk 0:03:01]}  cxd4 {[%clk 0:02:54]} 6. O-O {[%clk 0:03:01]}  Nge7 {[%clk 0:02:49]} 7. Nbd2 {[%clk 0:03:00]}  Ng6 {[%clk 0:02:48]} 8. Re1 {[%clk 0:03:01]}  Qc7 {[%clk 0:02:46]} 9. Bxg6 {[%clk 0:02:58]}  hxg6 {[%clk 0:02:45]} 10. Nb3 {[%clk 0:02:59]}  Bd7 {[%clk 0:02:42]} 11. Nbxd4 {[%clk 0:02:56]}  Nxd4 {[%clk 0:02:42]} 12. Nxd4 {[%clk 0:02:56]}  Bc5 {[%clk 0:02:40]} 13. c3 {[%clk 0:02:54]}  Rc8 {[%clk 0:02:39]} 14. Bg5 {[%clk 0:02:44]}  a6 {[%clk 0:02:18]} 15. Qd2 {[%clk 0:02:42]}  Bc6 {[%clk 0:02:11]} 16. h4 {[%clk 0:02:28]}  Qb6 {[%clk 0:01:53]} 17. Rad1 {[%clk 0:02:26]}  Ba4 {[%clk 0:01:49]} 18. Rc1 {[%clk 0:02:24]}  Bd7 {[%clk 0:01:46]} 19. g3 {[%clk 0:02:14]}  a5 {[%clk 0:01:35]} 20. Be3 {[%clk 0:02:13]}  Rh5 {[%clk 0:01:00]} 21. Nf3 {[%clk 0:02:08]}  Bxe3 {[%clk 0:01:00]} 22. Rxe3 {[%clk 0:02:07]}  Rc4 {[%clk 0:00:57]} 23. Nd4 {[%clk 0:02:05]}  Qc7 {[%clk 0:00:54]} 24. Rce1 {[%clk 0:02:03]}  Kf8 {[%clk 0:00:44]} 25. Qe2 {[%clk 0:01:09]}  Kg8 {[%clk 0:00:42]} 26. Nf3 {[%clk 0:01:09]}  Bb5 {[%clk 0:00:36]} 27. Qd2 {[%clk 0:01:05]}  Bd7 {[%clk 0:00:34]} 28. Ng5 {[%clk 0:01:03]}  Be8 {[%clk 0:00:23]} 29. Rd3 {[%clk 0:00:57]}  Rg4 {[%clk 0:00:21]} 30. Rd4 {[%clk 0:00:54]}  Rhxh4 {[%clk 0:00:17]} 31. Rxg4 {[%clk 0:00:43]}  Rxg4 {[%clk 0:00:18]} 32. Kg2 {[%clk 0:00:37]}  Qe7 {[%clk 0:00:16]} 33. f4 {[%clk 0:00:35]}  f6 {[%clk 0:00:07]} 34. exf6 {[%clk 0:00:33]}  gxf6 {[%clk 0:00:04]} 35. Rxe6 {[%clk 0:00:27]}  Qd7 {[%clk 0:00:00]} 36. Qe2 {[%clk 0:00:23]} 1-0


[Site "https://www.chess.com"]

[Event "Titled Tuesday Blitz June 13 Late 2023"]
[White "Gerbelli Neto, Eduardo"]
[Black "Jeet, Jain"]
[WhiteFideId "2103281"]
[BlackFideId "5073022"]
[WhiteElo "2178"]
[BlackElo "2067"]
[Result "0-1"]
[Round "1"]
[TimeControl "180+2"]
[Date "2023.06.13"]
[WhiteClock "0:00:02"]
[BlackClock "0:00:14"]
[Board "129"]

1. e4 {[%clk 0:02:54]}  c6 {[%clk 0:02:58]} 2. d4 {[%clk 0:02:54]}  d5 {[%clk 0:02:58]} 3. exd5 {[%clk 0:02:55]}  cxd5 {[%clk 0:02:58]} 4. c4 {[%clk 0:02:55]}  Nf6 {[%clk 0:02:57]} 5. Nc3 {[%clk 0:02:56]}  Nc6 {[%clk 0:02:54]} 6. Nf3 {[%clk 0:02:57]}  g6 {[%clk 0:02:54]} 7. cxd5 {[%clk 0:02:54]}  Nxd5 {[%clk 0:02:54]} 8. Qb3 {[%clk 0:02:54]}  Nxc3 {[%clk 0:02:48]} 9. Bc4 {[%clk 0:02:53]}  e6 {[%clk 0:02:45]} 10. bxc3 {[%clk 0:02:53]}  Bg7 {[%clk 0:02:42]} 11. Bg5 {[%clk 0:02:51]}  Qc7 {[%clk 0:02:37]} 12. O-O {[%clk 0:02:29]}  O-O {[%clk 0:02:36]} 13. Bd3 {[%clk 0:02:30]}  Bd7 {[%clk 0:02:32]} 14. Rab1 {[%clk 0:02:29]}  Na5 {[%clk 0:02:31]} 15. Qb4 {[%clk 0:02:24]}  Bc6 {[%clk 0:02:25]} 16. Be7 {[%clk 0:02:14]}  Bxf3 {[%clk 0:02:09]} 17. gxf3 {[%clk 0:02:15]}  Rfe8 {[%clk 0:02:07]} 18. Bd6 {[%clk 0:02:14]}  Qd8 {[%clk 0:02:07]} 19. Be4 {[%clk 0:02:07]}  Rc8 {[%clk 0:01:57]} 20. Rfc1 {[%clk 0:02:00]}  Nc4 {[%clk 0:01:49]} 21. Bf4 {[%clk 0:01:51]}  b6 {[%clk 0:01:47]} 22. Qa4 {[%clk 0:01:36]}  e5 {[%clk 0:01:34]} 23. Bg3 {[%clk 0:01:14]}  Nd2 {[%clk 0:01:22]} 24. Bc6 {[%clk 0:01:02]}  Nxb1 {[%clk 0:01:20]} 25. Bxe8 {[%clk 0:01:01]}  Nxc3 {[%clk 0:01:19]} 26. Rxc3 {[%clk 0:00:44]}  Rxc3 {[%clk 0:01:19]} 27. dxe5 {[%clk 0:00:45]}  h5 {[%clk 0:01:14]} 28. h4 {[%clk 0:00:42]}  Rxf3 {[%clk 0:01:09]} 29. Kg2 {[%clk 0:00:34]}  Qd5 {[%clk 0:01:01]} 30. Bc6 {[%clk 0:00:33]}  Ra3+ {[%clk 0:01:01]} 31. Bxd5 {[%clk 0:00:26]}  Rxa4 {[%clk 0:01:01]} 32. Bb3 {[%clk 0:00:26]}  Re4 {[%clk 0:00:59]} 33. f4 {[%clk 0:00:26]}  Bf8 {[%clk 0:00:52]} 34. Kf3 {[%clk 0:00:27]}  Rd4 {[%clk 0:00:50]} 35. e6 {[%clk 0:00:26]}  fxe6 {[%clk 0:00:49]} 36. Bxe6+ {[%clk 0:00:27]}  Kh7 {[%clk 0:00:48]} 37. Bf2 {[%clk 0:00:27]}  Rd3+ {[%clk 0:00:44]} 38. Ke2 {[%clk 0:00:24]}  Rd6 {[%clk 0:00:40]} 39. f5 {[%clk 0:00:24]}  Be7 {[%clk 0:00:33]} 40. Bg3 {[%clk 0:00:24]}  Rd4 {[%clk 0:00:31]} 41. Ke3 {[%clk 0:00:22]}  Ra4 {[%clk 0:00:28]} 42. Be5 {[%clk 0:00:09]}  gxf5 {[%clk 0:00:21]} 43. Bxf5+ {[%clk 0:00:10]}  Kg8 {[%clk 0:00:20]} 44. Be6+ {[%clk 0:00:11]}  Kf8 {[%clk 0:00:20]} 45. Bg3 {[%clk 0:00:10]}  Bxh4 {[%clk 0:00:20]} 46. Bd6+ {[%clk 0:00:09]}  Kg7 {[%clk 0:00:19]} 47. Bb3 {[%clk 0:00:07]}  Bg5+ {[%clk 0:00:18]} 48. Kf3 {[%clk 0:00:02]}  Ra5 {[%clk 0:00:14]} 0-1


[Site "https://www.chess.com"]

[Event "Titled Tuesday Blitz June 13 Late 2023"]
[White "Spata, German"]
[Black "Kaganskiy, Gleb"]
[WhiteFideId "113026"]
[BlackFideId "4132025"]
[WhiteElo "2260"]
[BlackElo "2165"]
[Result "1-0"]
[Round "1"]
[TimeControl "180+2"]
[Date "2023.06.13"]
[WhiteClock "0:00:05"]
[BlackClock "0:00:09"]
[Board "134"]

1. Nf3 {[%clk 0:02:43]}  d5 {[%clk 0:02:58]} 2. e3 {[%clk 0:02:43]}  Nc6 {[%clk 0:02:55]} 3. c4 {[%clk 0:02:43]}  Nf6 {[%clk 0:02:46]} 4. cxd5 {[%clk 0:02:42]}  Nxd5 {[%clk 0:02:46]} 5. d4 {[%clk 0:02:41]}  Bg4 {[%clk 0:02:41]} 6. Be2 {[%clk 0:02:41]}  e6 {[%clk 0:02:41]} 7. O-O {[%clk 0:02:40]}  Be7 {[%clk 0:02:41]} 8. Nc3 {[%clk 0:02:40]}  O-O {[%clk 0:02:40]} 9. h3 {[%clk 0:02:40]}  Bh5 {[%clk 0:02:40]} 10. Bd2 {[%clk 0:02:38]}  Bg6 {[%clk 0:02:35]} 11. a3 {[%clk 0:02:38]}  a6 {[%clk 0:02:33]} 12. Rc1 {[%clk 0:02:38]}  Nxc3 {[%clk 0:02:32]} 13. Bxc3 {[%clk 0:02:37]}  Bh5 {[%clk 0:02:28]} 14. Nd2 {[%clk 0:02:36]}  Bxe2 {[%clk 0:02:28]} 15. Qxe2 {[%clk 0:02:37]}  Bd6 {[%clk 0:02:24]} 16. Ne4 {[%clk 0:02:36]}  Ne7 {[%clk 0:02:23]} 17. Rfd1 {[%clk 0:02:34]}  Nd5 {[%clk 0:02:20]} 18. Bd2 {[%clk 0:02:34]}  Re8 {[%clk 0:02:16]} 19. Qf3 {[%clk 0:02:33]}  c6 {[%clk 0:02:07]} 20. Rc2 {[%clk 0:02:27]}  Rc8 {[%clk 0:02:06]} 21. Rdc1 {[%clk 0:02:27]}  Bb8 {[%clk 0:02:05]} 22. Nc5 {[%clk 0:02:25]}  Qe7 {[%clk 0:02:01]} 23. e4 {[%clk 0:02:22]}  Nf6 {[%clk 0:02:00]} 24. Bb4 {[%clk 0:02:20]}  Qc7 {[%clk 0:01:52]} 25. g3 {[%clk 0:02:16]}  Ba7 {[%clk 0:01:52]} 26. Bd2 {[%clk 0:02:05]}  Bxc5 {[%clk 0:01:49]} 27. dxc5 {[%clk 0:02:02]}  Rcd8 {[%clk 0:01:44]} 28. Bg5 {[%clk 0:01:57]}  Rd4 {[%clk 0:00:35]} 29. Bxf6 {[%clk 0:01:56]}  gxf6 {[%clk 0:00:36]} 30. Qxf6 {[%clk 0:01:57]}  Rxe4 {[%clk 0:00:36]} 31. Rd2 {[%clk 0:01:43]}  Qe7 {[%clk 0:00:34]} 32. Qh6 {[%clk 0:01:29]}  Re5 {[%clk 0:00:30]} 33. b4 {[%clk 0:01:22]}  Rd8 {[%clk 0:00:20]} 34. Rcd1 {[%clk 0:01:15]}  Rdd5 {[%clk 0:00:20]} 35. Rxd5 {[%clk 0:01:12]}  exd5 {[%clk 0:00:18]} 36. Qf4 {[%clk 0:00:57]}  Re1+ {[%clk 0:00:10]} 37. Rxe1 {[%clk 0:00:57]}  Qxe1+ {[%clk 0:00:11]} 38. Kg2 {[%clk 0:00:58]}  Qe7 {[%clk 0:00:11]} 39. Qg4+ {[%clk 0:00:56]}  Kf8 {[%clk 0:00:11]} 40. Qc8+ {[%clk 0:00:56]}  Kg7 {[%clk 0:00:11]} 41. h4 {[%clk 0:00:54]}  Qe4+ {[%clk 0:00:11]} 42. Kg1 {[%clk 0:00:53]}  Qe1+ {[%clk 0:00:09]} 43. Kg2 {[%clk 0:00:52]}  Qe4+ {[%clk 0:00:10]} 44. Kh2 {[%clk 0:00:51]}  Qf3 {[%clk 0:00:10]} 45. Kg1 {[%clk 0:00:49]}  Qd1+ {[%clk 0:00:06]} 46. Kg2 {[%clk 0:00:48]}  d4 {[%clk 0:00:06]} 47. Qd8 {[%clk 0:00:31]}  d3 {[%clk 0:00:06]} 48. Qg5+ {[%clk 0:00:29]}  Kf8 {[%clk 0:00:07]} 49. h5 {[%clk 0:00:24]}  d2 {[%clk 0:00:06]} 50. Qd8+ {[%clk 0:00:22]}  Kg7 {[%clk 0:00:06]} 51. Qg5+ {[%clk 0:00:20]}  Kf8 {[%clk 0:00:06]} 52. h6 {[%clk 0:00:19]}  Qe2 {[%clk 0:00:06]} 53. Qd8+ {[%clk 0:00:18]}  Qe8 {[%clk 0:00:04]} 54. Qxd2 {[%clk 0:00:17]}  Qe4+ {[%clk 0:00:05]} 55. Kg1 {[%clk 0:00:17]}  Ke7 {[%clk 0:00:04]} 56. Qd6+ {[%clk 0:00:13]}  Ke8 {[%clk 0:00:04]} 57. Qb8+ {[%clk 0:00:12]}  Ke7 {[%clk 0:00:05]} 58. Qxb7+ {[%clk 0:00:13]}  Ke6 {[%clk 0:00:05]} 59. Qc8+ {[%clk 0:00:12]}  Kd5 {[%clk 0:00:05]} 60. Qd7+ {[%clk 0:00:07]}  Kc4 {[%clk 0:00:05]} 61. Qd2 {[%clk 0:00:05]}  Kb3 {[%clk 0:00:02]} 62. Qc1 {[%clk 0:00:02]}  Ka4 {[%clk 0:00:02]} 63. Kf1 {[%clk 0:00:02]}  Qd3+ {[%clk 0:00:03]} 64. Kg2 {[%clk 0:00:02]}  Qxa3 {[%clk 0:00:04]} 65. Qc2+ {[%clk 0:00:01]}  Kxb4 {[%clk 0:00:03]} 66. Qxh7 {[%clk 0:00:02]}  Ka4 {[%clk 0:00:04]} 67. Qg7 {[%clk 0:00:03]}  Qb4 {[%clk 0:00:05]} 68. h7 {[%clk 0:00:03]}  Kb3 {[%clk 0:00:06]} 69. h8=Q {[%clk 0:00:04]}  Qe4+ {[%clk 0:00:07]} 70. Kg1 {[%clk 0:00:04]}  Qe1+ {[%clk 0:00:07]} 71. Kg2 {[%clk 0:00:04]}  Qe4+ {[%clk 0:00:08]} 72. Kh2 {[%clk 0:00:05]}  Qe1 {[%clk 0:00:09]} 73. Qb2+ {[%clk 0:00:05]}  Kc4 {[%clk 0:00:09]} 74. Qhd4# {[%clk 0:00:05]} 1-0


[Site "https://www.chess.com"]

[Event "Titled Tuesday Blitz June 13 Late 2023"]
[White "Kaufman, Raymond"]
[Black "Rostomyan, Mikayel"]
[WhiteFideId "2015056"]
[BlackFideId "13313754"]
[WhiteElo "2264"]
[BlackElo "2061"]
[Result "0-1"]
[Round "1"]
[TimeControl "180+2"]
[Date "2023.06.13"]
[WhiteClock "0:00:00"]
[BlackClock "0:00:03"]
[Board "137"]

1. d4 {[%clk 0:02:54]}  d5 {[%clk 0:02:57]} 2. Bf4 {[%clk 0:02:51]}  Nf6 {[%clk 0:02:51]} 3. e3 {[%clk 0:02:49]}  e6 {[%clk 0:02:43]} 4. Nf3 {[%clk 0:02:46]}  Bd6 {[%clk 0:02:40]} 5. Ne5 {[%clk 0:02:46]}  O-O {[%clk 0:02:39]} 6. Bd3 {[%clk 0:02:33]}  c5 {[%clk 0:02:38]} 7. c3 {[%clk 0:02:30]}  Nc6 {[%clk 0:02:33]} 8. Nd2 {[%clk 0:02:27]}  Qc7 {[%clk 0:02:32]} 9. Ndf3 {[%clk 0:02:21]}  h6 {[%clk 0:02:07]} 10. h3 {[%clk 0:02:14]}  Nd7 {[%clk 0:02:05]} 11. Nxd7 {[%clk 0:02:07]}  Bxd7 {[%clk 0:02:04]} 12. Bxd6 {[%clk 0:01:56]}  Qxd6 {[%clk 0:02:02]} 13. O-O {[%clk 0:01:50]}  e5 {[%clk 0:01:53]} 14. dxc5 {[%clk 0:01:49]}  Qxc5 {[%clk 0:01:53]} 15. e4 {[%clk 0:01:48]}  Be6 {[%clk 0:01:42]} 16. exd5 {[%clk 0:01:43]}  Qxd5 {[%clk 0:01:40]} 17. Qe2 {[%clk 0:01:37]}  Rad8 {[%clk 0:01:18]} 18. Rfd1 {[%clk 0:01:33]}  Qc5 {[%clk 0:01:16]} 19. Be4 {[%clk 0:01:26]}  Bc4 {[%clk 0:00:55]} 20. Qe1 {[%clk 0:01:07]}  f6 {[%clk 0:00:45]} 21. Nh4 {[%clk 0:00:47]}  Bf7 {[%clk 0:00:38]} 22. Nf5 {[%clk 0:00:42]}  Ne7 {[%clk 0:00:33]} 23. b4 {[%clk 0:00:36]}  Qc7 {[%clk 0:00:32]} 24. Ne3 {[%clk 0:00:21]}  b6 {[%clk 0:00:28]} 25. c4 {[%clk 0:00:20]}  Rd4 {[%clk 0:00:28]} 26. Rxd4 {[%clk 0:00:20]}  exd4 {[%clk 0:00:28]} 27. Nd5 {[%clk 0:00:20]}  Nxd5 {[%clk 0:00:27]} 28. Bxd5 {[%clk 0:00:20]}  Qe5 {[%clk 0:00:22]} 29. Bxf7+ {[%clk 0:00:18]}  Kxf7 {[%clk 0:00:22]} 30. Qd2 {[%clk 0:00:18]}  Rd8 {[%clk 0:00:16]} 31. Re1 {[%clk 0:00:18]}  Qd6 {[%clk 0:00:17]} 32. a3 {[%clk 0:00:14]}  d3 {[%clk 0:00:17]} 33. Re3 {[%clk 0:00:14]}  Qd4 {[%clk 0:00:16]} 34. c5 {[%clk 0:00:13]}  bxc5 {[%clk 0:00:13]} 35. bxc5 {[%clk 0:00:13]}  Qa1+ {[%clk 0:00:12]} 36. Kh2 {[%clk 0:00:13]}  Qxa3 {[%clk 0:00:13]} 37. c6 {[%clk 0:00:12]}  Qd6+ {[%clk 0:00:13]} 38. g3 {[%clk 0:00:09]}  Qxc6 {[%clk 0:00:08]} 39. Rxd3 {[%clk 0:00:09]}  Rxd3 {[%clk 0:00:09]} 40. Qxd3 {[%clk 0:00:10]}  a5 {[%clk 0:00:05]} 41. Qd8 {[%clk 0:00:08]}  Qa6 {[%clk 0:00:04]} 42. Qd7+ {[%clk 0:00:07]}  Kf8 {[%clk 0:00:04]} 43. Qd8+ {[%clk 0:00:07]}  Kf7 {[%clk 0:00:04]} 44. Qd7+ {[%clk 0:00:08]}  Kg6 {[%clk 0:00:05]} 45. Qg4+ {[%clk 0:00:06]}  Kh7 {[%clk 0:00:04]} 46. Qf5+ {[%clk 0:00:06]}  Kg8 {[%clk 0:00:03]} 47. Qd5+ {[%clk 0:00:05]}  Kh7 {[%clk 0:00:03]} 48. Qf5+ {[%clk 0:00:04]}  Kh8 {[%clk 0:00:03]} 49. Qe6 {[%clk 0:00:00]}  Qa8 {[%clk 0:00:03]} 0-1


[Site "https://www.chess.com"]

[Event "Titled Tuesday Blitz June 13 Late 2023"]
[White "Bjelobrk, Igor"]
[Black "Shapiro, Daniel"]
[WhiteFideId "4300726"]
[BlackFideId "2001780"]
[WhiteElo "2319"]
[BlackElo "2328"]
[Result "1-0"]
[Round "1"]
[TimeControl "180+2"]
[Date "2023.06.13"]
[WhiteClock "0:01:24"]
[BlackClock "0:00:03"]
[Board "138"]

1. d4 {[%clk 0:02:40]}  Nf6 {[%clk 0:02:59]} 2. c4 {[%clk 0:02:40]}  e6 {[%clk 0:02:59]} 3. g3 {[%clk 0:02:39]}  d5 {[%clk 0:02:56]} 4. Nf3 {[%clk 0:02:38]}  Bb4+ {[%clk 0:02:56]} 5. Bd2 {[%clk 0:02:36]}  Be7 {[%clk 0:02:57]} 6. Bg2 {[%clk 0:02:34]}  c6 {[%clk 0:02:57]} 7. O-O {[%clk 0:02:33]}  O-O {[%clk 0:02:58]} 8. Qc2 {[%clk 0:02:33]}  b6 {[%clk 0:02:58]} 9. Bf4 {[%clk 0:02:30]}  Ba6 {[%clk 0:02:57]} 10. Nbd2 {[%clk 0:02:29]}  Nbd7 {[%clk 0:02:54]} 11. Rfd1 {[%clk 0:02:13]}  Nh5 {[%clk 0:02:27]} 12. Be3 {[%clk 0:02:12]}  f5 {[%clk 0:02:27]} 13. cxd5 {[%clk 0:02:09]}  cxd5 {[%clk 0:02:24]} 14. Qc6 {[%clk 0:02:08]}  Rf6 {[%clk 0:02:09]} 15. Bf1 {[%clk 0:02:05]}  Rg6 {[%clk 0:01:59]} 16. Kh1 {[%clk 0:01:57]}  Rc8 {[%clk 0:01:24]} 17. Qa4 {[%clk 0:01:54]}  Nb8 {[%clk 0:01:25]} 18. Rac1 {[%clk 0:01:52]}  Bd6 {[%clk 0:01:10]} 19. Ne5 {[%clk 0:01:46]}  Rxc1 {[%clk 0:01:03]} 20. Rxc1 {[%clk 0:01:45]}  Bxe5 {[%clk 0:01:00]} 21. dxe5 {[%clk 0:01:45]}  f4 {[%clk 0:00:49]} 22. Bxf4 {[%clk 0:01:38]}  b5 {[%clk 0:00:33]} 23. Qd4 {[%clk 0:01:35]}  Qe7 {[%clk 0:00:20]} 24. Nf3 {[%clk 0:01:31]}  Bb7 {[%clk 0:00:11]} 25. Qxa7 {[%clk 0:01:25]}  Nxf4 {[%clk 0:00:06]} 26. Qxb8+ {[%clk 0:01:24]}  Qe8 {[%clk 0:00:03]} 27. Qxe8# {[%clk 0:01:24]} 1-0


[Site "https://www.chess.com"]